[Event "*** Qualifier 4: Titled Tuesday 3|2 Blitz"]
[Site "Chess.com"]
[Date "2017.04.25"]
[Round "7"]
[White "Lawliet64"]
[Black "chesstatour"]
[Result "0-1"]
[WhiteElo "1576"]
[BlackElo "1903"]
[TimeControl "180+2"]
[EndTime "14:35:43 PDT"]
[Termination "chesstatour won by resignation"]

1. e4 {[%clk 0:02:57.6]} 1... c6 {[%clk 0:02:59.8]} 2. d4 {[%clk 0:02:55]} 2...
d5 {[%clk 0:03:01.7]} 3. e5 {[%clk 0:02:53.1]} 3... c5 {[%clk 0:02:58.1]} 4. c3
{[%clk 0:02:49.6]} 4... Nc6 {[%clk 0:02:57.9]} 5. Nf3 {[%clk 0:02:48.6]} 5...
Bg4 {[%clk 0:02:57.2]} 6. Be2 {[%clk 0:02:46.3]} 6... e6 {[%clk 0:02:54.4]} 7.
O-O {[%clk 0:02:43.4]} 7... Qb6 {[%clk 0:02:35.7]} 8. dxc5 {[%clk 0:02:39.7]}
8... Bxc5 {[%clk 0:02:30.9]} 9. b4 {[%clk 0:02:39.8]} 9... Be7 {[%clk
0:02:27.7]} 10. Bf4 {[%clk 0:02:34.2]} 10... Rc8 {[%clk 0:02:00.3]} 11. Nbd2
{[%clk 0:02:33.2]} 11... h5 {[%clk 0:01:42.3]} 12. a3 {[%clk 0:02:25.4]} 12...
Nh6 {[%clk 0:01:40.8]} 13. c4 {[%clk 0:02:23.3]} 13... Bxf3 {[%clk 0:01:22.7]}
14. Bxf3 {[%clk 0:02:16.7]} 14... dxc4 {[%clk 0:01:16.6]} 15. Nxc4 {[%clk
0:02:14.7]} 15... Qd8 {[%clk 0:01:13.5]} 16. Nd6+ {[%clk 0:01:50.9]} 16... Bxd6
{[%clk 0:01:10.2]} 17. exd6 {[%clk 0:01:52.1]} 17... Nf5 {[%clk 0:00:55]} 18.
d7+ {[%clk 0:01:27]} 18... Qxd7 {[%clk 0:00:54.9]} 19. Qxd7+ {[%clk 0:01:28.2]}
19... Kxd7 {[%clk 0:00:56.5]} 20. Rfd1+ {[%clk 0:01:29.1]} 20... Ke7 {[%clk
0:00:49.4]} 21. b5 {[%clk 0:01:29.7]} 21... Na5 {[%clk 0:00:41.9]} 22. h3 {[%clk
0:01:30.7]} 22... Rhd8 {[%clk 0:00:33.7]} 23. Bxh5 {[%clk 0:01:28]} 23... Rxd1+
{[%clk 0:00:14.9]} 24. Rxd1 {[%clk 0:01:23.4]} 24... g6 {[%clk 0:00:10.6]} 25.
Bf3 {[%clk 0:01:22.7]} 25... Rc4 {[%clk 0:00:07.9]} 26. Bb8 {[%clk 0:01:20.8]}
26... a6 {[%clk 0:00:07.2]} 27. g4 {[%clk 0:01:22.1]} 27... Nd4 {[%clk
0:00:07.3]} 28. Bxb7 {[%clk 0:01:16.4]} 28... axb5 {[%clk 0:00:07.4]} 29. Ba6
{[%clk 0:01:15.2]} 29... f6 {[%clk 0:00:06.3]} 30. g5 {[%clk 0:01:12.4]} 30...
e5 {[%clk 0:00:06.2]} 31. f4 {[%clk 0:01:09.5]} 31... fxg5 {[%clk 0:00:05.1]}
32. fxe5 {[%clk 0:01:08.7]} 32... Ke6 {[%clk 0:00:04.4]} 33. Bd6 {[%clk
0:01:06.6]} 33... Nf3+ {[%clk 0:00:03.6]} 34. Kf2 {[%clk 0:01:06.7]} 34... Nxe5
{[%clk 0:00:04.9]} 35. Bc8+ {[%clk 0:01:01.9]} 35... Rxc8 {[%clk 0:00:04.7]} 36.
Bb4 {[%clk 0:00:59.2]} 36... Nac6 {[%clk 0:00:04.9]} 37. Bc5 {[%clk 0:00:58.2]}
37... Re8 {[%clk 0:00:03.5]} 38. Kg2 {[%clk 0:00:56.3]} 38... Kf5 {[%clk
0:00:04.3]} 39. Rd6 {[%clk 0:00:55.3]} 39... Ra8 {[%clk 0:00:03.6]} 40. Bb4
{[%clk 0:00:50.7]} 40... Rc8 {[%clk 0:00:03.9]} 41. Rd5 {[%clk 0:00:50.4]} 41...
Re8 {[%clk 0:00:04.3]} 42. Rxb5 {[%clk 0:00:51.5]} 42... Ke4 {[%clk 0:00:04.4]}
43. Bd6 {[%clk 0:00:50.8]} 43... Rd8 {[%clk 0:00:04.9]} 44. Bc7 {[%clk 0:00:51]}
44... Rd7 {[%clk 0:00:05.5]} 45. Bb6 {[%clk 0:00:50.4]} 45... Rd2+ {[%clk
0:00:05.3]} 46. Kf1 {[%clk 0:00:49.5]} 46... Rd3 {[%clk 0:00:05.5]} 47. a4
{[%clk 0:00:49.2]} 47... Ra3 {[%clk 0:00:05]} 48. a5 {[%clk 0:00:46.5]} 48...
Nc4 {[%clk 0:00:04.5]} 49. Rxg5 {[%clk 0:00:45.9]} 49... N6e5 {[%clk 0:00:05.6]}
50. Rg2 {[%clk 0:00:41.8]} 50... Ra1+ {[%clk 0:00:06]} 51. Kf2 {[%clk
0:00:41.9]} 51... Ra2+ {[%clk 0:00:06.2]} 52. Kf1 {[%clk 0:00:43.1]} 52... Ra1+
{[%clk 0:00:05.6]} 53. Kf2 {[%clk 0:00:43.7]} 53... Nxa5 {[%clk 0:00:06.5]} 54.
Bxa5 {[%clk 0:00:39.1]} 54... Rxa5 {[%clk 0:00:06.5]} 55. Kg3 {[%clk 0:00:39.4]}
55... Ra3+ {[%clk 0:00:05.5]} 56. Kh4 {[%clk 0:00:37.5]} 56... Kf5 {[%clk
0:00:06.6]} 57. Rg5+ {[%clk 0:00:36]} 57... Kf6 {[%clk 0:00:07]} 58. Rg2 {[%clk
0:00:35.9]} 58... Ra4+ {[%clk 0:00:06.3]} 59. Kg3 {[%clk 0:00:36.6]} 59... Kg5
{[%clk 0:00:05.4]} 60. Rb2 {[%clk 0:00:31.6]} 60... Ra3+ {[%clk 0:00:06]} 61.
Kh2 {[%clk 0:00:32.3]} 61... Kf5 {[%clk 0:00:04.8]} 62. Kg2 {[%clk 0:00:33.1]}
62... g5 {[%clk 0:00:05.7]} 63. Kh2 {[%clk 0:00:34]} 63... Ra5 {[%clk
0:00:04.6]} 64. Rf2+ {[%clk 0:00:34]} 64... Kg6 {[%clk 0:00:03.4]} 65. Rd2
{[%clk 0:00:35]} 65... Nf7 {[%clk 0:00:03.3]} 66. Rd7 {[%clk 0:00:33.6]} 66...
Ra2+ {[%clk 0:00:03.3]} 67. Kg3 {[%clk 0:00:33.7]} 67... Ra3+ {[%clk 0:00:04.6]}
68. Kh2 {[%clk 0:00:33.2]} 68... Ne5 {[%clk 0:00:05.8]} 69. Rd6+ {[%clk
0:00:32.5]} 69... Kf5 {[%clk 0:00:07]} 70. Rb6 {[%clk 0:00:31.4]} 70... Rd3
{[%clk 0:00:06.9]} 71. Rb8 {[%clk 0:00:31.5]} 71... Rd4 {[%clk 0:00:07.6]} 72.
Rf8+ {[%clk 0:00:32.4]} 72... Ke4 {[%clk 0:00:08.2]} 73. Rf6 {[%clk 0:00:32.6]}
73... Rd2+ {[%clk 0:00:07.7]} 74. Kg3 {[%clk 0:00:31.6]} 74... Rd3+ {[%clk
0:00:08.5]} 75. Kh2 {[%clk 0:00:31.8]} 75... Rf3 {[%clk 0:00:09.6]} 76. Ra6
{[%clk 0:00:27.9]} 76... Nd3 {[%clk 0:00:09.4]} 77. h4 {[%clk 0:00:27.3]} 77...
g4 {[%clk 0:00:08.6]} 78. h5 {[%clk 0:00:26.1]} 78... Rh3+ {[%clk 0:00:08.7]}
79. Kg2 {[%clk 0:00:26.1]} 79... Rxh5 {[%clk 0:00:10.1]} 80. Ra4+ {[%clk
0:00:25.9]} 80... Kf5 {[%clk 0:00:08.1]} 81. Ra5+ {[%clk 0:00:26.9]} 81... Kg6
{[%clk 0:00:09.2]} 82. Ra7 {[%clk 0:00:24.5]} 82... Kg5 {[%clk 0:00:08.8]} 83.
Kg3 {[%clk 0:00:24.4]} 83... Rh3+ {[%clk 0:00:09.5]} 84. Kg2 {[%clk 0:00:25.4]}
84... Nf4+ {[%clk 0:00:10.5]} 85. Kf2 {[%clk 0:00:25.7]} 85... Ng6 {[%clk
0:00:09.4]} 86. Kg2 {[%clk 0:00:26.1]} 86... Rb3 {[%clk 0:00:09.8]} 87. Ra5+
{[%clk 0:00:27.1]} 87... Kh4 {[%clk 0:00:10.5]} 88. Ra8 {[%clk 0:00:28.2]} 88...
Nf4+ {[%clk 0:00:11.3]} 89. Kg1 {[%clk 0:00:28.8]} 89... Kg3 {[%clk 0:00:11.4]}
90. Ra1 {[%clk 0:00:28]} 90... Nh3+ {[%clk 0:00:11.1]} 91. Kh1 {[%clk
0:00:28.6]} 91... Nf2+ {[%clk 0:00:10.1]} 92. Kg1 {[%clk 0:00:28.6]} 92... Nh3+
{[%clk 0:00:09.7]} 93. Kh1 {[%clk 0:00:29.2]} 93... Kh4 {[%clk 0:00:09.7]} 94.
Kh2 {[%clk 0:00:29.2]} 94... Rb2+ {[%clk 0:00:10.3]} 95. Kh1 {[%clk 0:00:28.8]}
95... Nf4 {[%clk 0:00:09.1]} 96. Rg1 {[%clk 0:00:27.2]} 96... g3 {[%clk
0:00:08.3]} 97. Rxg3 {[%clk 0:00:17]} 97... Kxg3 {[%clk 0:00:08.7]} 0-1

[Event "*** Qualifier 4: Titled Tuesday 3|2 Blitz"]
[Site "Chess.com"]
[Date "2017.04.25"]
[Round "7"]
[White "Schemato"]
[Black "Wolverine_master"]
[Result "1-0"]
[WhiteElo "2232"]
[BlackElo "1978"]
[TimeControl "180+2"]
[EndTime "14:36:03 PDT"]
[Termination "Schemato won on time"]

1. c4 {[%clk 0:03:02]} 1... Nf6 {[%clk 0:03:00.9]} 2. Nc3 {[%clk 0:03:02.6]}
2... e6 {[%clk 0:03:00.9]} 3. e4 {[%clk 0:03:02.9]} 3... d5 {[%clk 0:02:40.1]}
4. e5 {[%clk 0:03:03.8]} 4... Ne4 {[%clk 0:02:41]} 5. Nf3 {[%clk 0:03:02]} 5...
Nxc3 {[%clk 0:02:41.1]} 6. dxc3 {[%clk 0:03:01.4]} 6... c6 {[%clk 0:02:36.5]} 7.
Bf4 {[%clk 0:02:56.1]} 7... Nd7 {[%clk 0:02:36.8]} 8. h4 {[%clk 0:02:54]} 8...
Qb6 {[%clk 0:02:36.3]} 9. Qc2 {[%clk 0:02:49.8]} 9... h6 {[%clk 0:02:30.2]} 10.
Rh3 {[%clk 0:02:35.8]} 10... Be7 {[%clk 0:02:09.7]} 11. Rg3 {[%clk 0:02:30.6]}
11... g6 {[%clk 0:02:10.9]} 12. Qd2 {[%clk 0:02:18.5]} 12... Bf8 {[%clk
0:02:01.8]} 13. Be3 {[%clk 0:02:09.1]} 13... Qc7 {[%clk 0:01:55.2]} 14. Bf4
{[%clk 0:02:06.6]} 14... Nc5 {[%clk 0:01:53.5]} 15. Bd3 {[%clk 0:02:00.3]} 15...
Nxd3+ {[%clk 0:01:52]} 16. Qxd3 {[%clk 0:02:01.3]} 16... Bd7 {[%clk 0:01:51.3]}
17. O-O-O {[%clk 0:01:50.1]} 17... O-O-O {[%clk 0:01:48]} 18. Kb1 {[%clk
0:01:49.4]} 18... Bc5 {[%clk 0:01:34.3]} 19. Be3 {[%clk 0:01:42]} 19... Qb6
{[%clk 0:01:27.1]} 20. Bxc5 {[%clk 0:01:36.8]} 20... Qxc5 {[%clk 0:01:27]} 21.
cxd5 {[%clk 0:01:38.1]} 21... cxd5 {[%clk 0:01:22.7]} 22. Qd4 {[%clk 0:01:38.1]}
22... b6 {[%clk 0:01:06.2]} 23. Rg4 {[%clk 0:01:25.8]} 23... Bb5 {[%clk
0:01:03.3]} 24. Re1 {[%clk 0:01:17.2]} 24... Kb7 {[%clk 0:00:48.4]} 25. Rf4
{[%clk 0:01:13.2]} 25... Rd7 {[%clk 0:00:46.5]} 26. Rf6 {[%clk 0:00:59.1]} 26...
a5 {[%clk 0:00:20.9]} 27. Re3 {[%clk 0:00:52.4]} 27... a4 {[%clk 0:00:17.6]} 28.
a3 {[%clk 0:00:49.6]} 28... Rc8 {[%clk 0:00:12]} 29. Qf4 {[%clk 0:00:43.8]}
29... Rcc7 {[%clk 0:00:04.3]} 30. Nd4 {[%clk 0:00:44.7]} 30... Qc4 {[%clk
0:00:05]} 31. Re1 {[%clk 0:00:18.2]} 31... Qd3+ {[%clk 0:00:05.9]} 32. Ka1
{[%clk 0:00:19.4]} 32... Bc4 {[%clk 0:00:06.9]} 33. Qe3 {[%clk 0:00:16.8]} 33...
Qxe3 {[%clk 0:00:08]} 34. Rxe3 {[%clk 0:00:17.3]} 34... h5 {[%clk 0:00:09.4]}
35. Ref3 {[%clk 0:00:17]} 35... b5 {[%clk 0:00:09.6]} 36. Kb1 {[%clk 0:00:16.5]}
36... Kb6 {[%clk 0:00:11.1]} 37. Kc1 {[%clk 0:00:17.6]} 37... Bf1 {[%clk
0:00:09.7]} 38. g3 {[%clk 0:00:16.8]} 38... Bg2 {[%clk 0:00:09.1]} 39. R3f4
{[%clk 0:00:17.6]} 39... Be4 {[%clk 0:00:09.4]} 40. Kd2 {[%clk 0:00:18.5]} 40...
Kc5 {[%clk 0:00:07.3]} 41. f3 {[%clk 0:00:13.9]} 41... Bf5 {[%clk 0:00:07.3]}
42. Nxf5 {[%clk 0:00:12.7]} 42... exf5 {[%clk 0:00:08.3]} 43. Rb4 {[%clk
0:00:13.3]} 43... Rc6 {[%clk 0:00:07.7]} 44. Ke3 {[%clk 0:00:14]} 44... Rxf6
{[%clk 0:00:08.4]} 45. exf6 {[%clk 0:00:14.2]} 45... Rd6 {[%clk 0:00:09.9]} 46.
Kf4 {[%clk 0:00:12.1]} 46... Rxf6 {[%clk 0:00:11]} 47. Kg5 {[%clk 0:00:13.5]}
47... Re6 {[%clk 0:00:12.3]} 48. Kh6 {[%clk 0:00:13.7]} 48... Re3 {[%clk
0:00:12.9]} 49. Rf4 {[%clk 0:00:13.8]} 49... Rd3 {[%clk 0:00:14]} 50. Kg7 {[%clk
0:00:14.8]} 50... Rd2 {[%clk 0:00:11.9]} 51. Rb4 {[%clk 0:00:15.2]} 51... d4
{[%clk 0:00:10.2]} 52. cxd4+ {[%clk 0:00:11.9]} 52... Rxd4 {[%clk 0:00:11]} 53.
Rxd4 {[%clk 0:00:11.6]} 53... Kxd4 {[%clk 0:00:12.9]} 54. Kxf7 {[%clk
0:00:12.8]} 54... g5 {[%clk 0:00:03.8]} 55. hxg5 {[%clk 0:00:12.1]} 55... f4
{[%clk 0:00:05.3]} 56. gxf4 {[%clk 0:00:11.6]} 56... h4 {[%clk 0:00:07.2]} 57.
g6 {[%clk 0:00:13]} 57... h3 {[%clk 0:00:09.1]} 58. g7 {[%clk 0:00:14.6]} 58...
h2 {[%clk 0:00:11]} 59. g8=Q {[%clk 0:00:16.5]} 59... h1=Q {[%clk 0:00:12.6]}
60. Qg7+ {[%clk 0:00:17.3]} 60... Kc4 {[%clk 0:00:13.6]} 61. Qe5 {[%clk
0:00:16.4]} 61... Qxf3 {[%clk 0:00:10.1]} 62. f5 {[%clk 0:00:17]} 62... Qb7+
{[%clk 0:00:09.4]} 63. Kg6 {[%clk 0:00:17]} 63... Qg2+ {[%clk 0:00:09.6]} 64.
Kf7 {[%clk 0:00:17.7]} 64... Qb7+ {[%clk 0:00:10.2]} 65. Kf6 {[%clk 0:00:18.7]}
65... Qa8 {[%clk 0:00:02.9]} 66. Kg7 {[%clk 0:00:18.2]} 66... Qa7+ {[%clk
0:00:03.5]} 67. Kg6 {[%clk 0:00:18.1]} 67... Qb6+ {[%clk 0:00:04.2]} 68. f6
{[%clk 0:00:18.5]} 68... Qg1+ {[%clk 0:00:05.1]} 69. Kh7 {[%clk 0:00:18.2]}
69... Kb3 {[%clk 0:00:06.1]} 70. f7 {[%clk 0:00:16.2]} 70... Qh1+ {[%clk
0:00:07.4]} 71. Kg8 {[%clk 0:00:17.4]} 71... Qg2+ {[%clk 0:00:08.8]} 72. Qg7
{[%clk 0:00:14.2]} 72... Qd5 {[%clk 0:00:06.9]} 73. Kh8 {[%clk 0:00:14.5]} 73...
Qh5+ {[%clk 0:00:07.5]} 74. Qh7 {[%clk 0:00:15]} 74... Qe5+ {[%clk 0:00:07.3]}
75. Kg8 {[%clk 0:00:14]} 75... Qg5+ {[%clk 0:00:07.6]} 76. Qg7 {[%clk
0:00:14.1]} 76... Qd5 {[%clk 0:00:08.6]} 77. Qc3+ {[%clk 0:00:14.6]} 77... Ka2
{[%clk 0:00:08.5]} 78. Qg7 {[%clk 0:00:13.5]} 78... Qe6 {[%clk 0:00:07.7]} 79.
Qg2 {[%clk 0:00:13.1]} 79... Qc4 {[%clk 0:00:06.8]} 80. Kg7 {[%clk 0:00:13.7]}
80... Qc7 {[%clk 0:00:07.1]} 81. Qf2 {[%clk 0:00:10.2]} 81... Qe5+ {[%clk
0:00:06.8]} 82. Qf6 {[%clk 0:00:11]} 82... Qg3+ {[%clk 0:00:07.7]} 83. Kh6
{[%clk 0:00:11.5]} 83... Qh3+ {[%clk 0:00:08]} 84. Kg5 {[%clk 0:00:12.4]} 84...
Qg3+ {[%clk 0:00:08.7]} 85. Kf5 {[%clk 0:00:13.6]} 85... Qf3+ {[%clk 0:00:09.6]}
86. Ke5 {[%clk 0:00:14.2]} 86... Qe3+ {[%clk 0:00:10]} 87. Kd5 {[%clk
0:00:14.6]} 87... Qd3+ {[%clk 0:00:11.2]} 88. Kc5 {[%clk 0:00:15.5]} 88... Qc4+
{[%clk 0:00:12.1]} 89. Kb6 {[%clk 0:00:16.5]} 89... b4 {[%clk 0:00:06.8]} 90.
f8=Q {[%clk 0:00:16.1]} 90... b3 {[%clk 0:00:08.2]} 91. Qc5 {[%clk 0:00:14.5]}
91... Qc1 {[%clk 0:00:07]} 92. Qfd4 {[%clk 0:00:12.5]} 92... Qb1 {[%clk
0:00:05.5]} 93. Kb5 {[%clk 0:00:12.9]} 93... Qf1+ {[%clk 0:00:05.3]} 94. Kxa4
{[%clk 0:00:13.2]} 94... Qd1 {[%clk 0:00:02.6]} 95. Kb4 {[%clk 0:00:13.6]} 1-0

[Event "*** Qualifier 4: Titled Tuesday 3|2 Blitz"]
[Site "Chess.com"]
[Date "2017.04.25"]
[Round "8"]
[White "Lawliet64"]
[Black "cailinchetty"]
[Result "0-1"]
[WhiteElo "1559"]
[BlackElo "1946"]
[TimeControl "180+2"]
[EndTime "14:40:01 PDT"]
[Termination "cailinchetty won by resignation"]

1. e4 {[%clk 0:03:02]} 1... c5 {[%clk 0:03:00.9]} 2. Nc3 {[%clk 0:03:03.2]} 2...
Nc6 {[%clk 0:03:02.2]} 3. Bc4 {[%clk 0:03:05]} 3... g6 {[%clk 0:03:02.9]} 4. d3
{[%clk 0:03:05.9]} 4... Bg7 {[%clk 0:03:03.6]} 5. f4 {[%clk 0:03:06.8]} 5... e6
{[%clk 0:03:03.4]} 6. Nf3 {[%clk 0:03:08.2]} 6... Nge7 {[%clk 0:03:03.6]} 7. O-O
{[%clk 0:03:09.6]} 7... d5 {[%clk 0:03:04.4]} 8. Bb3 {[%clk 0:03:11.1]} 8... b6
{[%clk 0:03:02.8]} 9. Qe1 {[%clk 0:03:10.6]} 9... d4 {[%clk 0:03:03.4]} 10. Ne2
{[%clk 0:03:10.9]} 10... Na5 {[%clk 0:03:04.2]} 11. Qh4 {[%clk 0:03:12]} 11...
Nec6 {[%clk 0:02:57.6]} 12. Qh3 {[%clk 0:03:09.2]} 12... e5 {[%clk 0:02:53.8]}
13. f5 {[%clk 0:03:10.3]} 13... Nxb3 {[%clk 0:02:51.6]} 14. axb3 {[%clk
0:03:10.3]} 14... f6 {[%clk 0:02:50.2]} 15. Bh6 {[%clk 0:03:09.6]} 15... O-O
{[%clk 0:02:46.6]} 16. g4 {[%clk 0:02:52.5]} 16... g5 {[%clk 0:02:43.7]} 17.
Bxg7 {[%clk 0:02:41.9]} 17... Kxg7 {[%clk 0:02:43.5]} 18. Qg2 {[%clk 0:02:40.5]}
18... h6 {[%clk 0:02:41.1]} 19. Ng3 {[%clk 0:02:41.6]} 19... a5 {[%clk
0:02:40.6]} 20. h4 {[%clk 0:02:39]} 20... Rh8 {[%clk 0:02:38.2]} 21. hxg5 {[%clk
0:02:38.4]} 21... hxg5 {[%clk 0:02:38.6]} 22. Kf2 {[%clk 0:02:39.7]} 22... Qg8
{[%clk 0:02:28.9]} 23. Rh1 {[%clk 0:02:39.7]} 23... Bd7 {[%clk 0:02:29.2]} 24.
c3 {[%clk 0:02:23.8]} 24... Kf7 {[%clk 0:02:21.7]} 25. Rxh8 {[%clk 0:02:17.7]}
25... Qxh8 {[%clk 0:02:21.9]} 26. b4 {[%clk 0:02:19.1]} 26... axb4 {[%clk
0:02:20.1]} 27. cxd4 {[%clk 0:02:19]} 27... Rxa1 {[%clk 0:02:15.4]} 0-1

[Event "*** Qualifier 4: Titled Tuesday 3|2 Blitz"]
[Site "Chess.com"]
[Date "2017.04.25"]
[Round "8"]
[White "AllStarShark"]
[Black "LawrenceTrent"]
[Result "0-1"]
[WhiteElo "2309"]
[BlackElo "2411"]
[TimeControl "180+2"]
[EndTime "14:40:36 PDT"]
[Termination "LawrenceTrent won by checkmate"]

1. d4 {[%clk 0:03:02]} 1... Nf6 {[%clk 0:02:58.5]} 2. Bg5 {[%clk 0:03:00]} 2...
g6 {[%clk 0:02:57.8]} 3. Bxf6 {[%clk 0:02:59.7]} 3... exf6 {[%clk 0:02:59.7]} 4.
e3 {[%clk 0:03:00.9]} 4... Bg7 {[%clk 0:03:01.2]} 5. g3 {[%clk 0:03:02.1]} 5...
d6 {[%clk 0:03:02.7]} 6. Bg2 {[%clk 0:03:03.6]} 6... h5 {[%clk 0:03:03.1]} 7. h4
{[%clk 0:03:04]} 7... O-O {[%clk 0:03:01.9]} 8. Ne2 {[%clk 0:03:05.1]} 8... c5
{[%clk 0:03:03.2]} 9. dxc5 {[%clk 0:03:02.7]} 9... dxc5 {[%clk 0:03:04.4]} 10.
Qxd8 {[%clk 0:03:02.7]} 10... Rxd8 {[%clk 0:03:06.3]} 11. Nd2 {[%clk 0:03:00.8]}
11... f5 {[%clk 0:03:07.7]} 12. c3 {[%clk 0:03:01.6]} 12... Nc6 {[%clk
0:03:04.4]} 13. Bxc6 {[%clk 0:02:58.4]} 13... bxc6 {[%clk 0:03:05.1]} 14. O-O-O
{[%clk 0:02:55.2]} 14... Be6 {[%clk 0:03:04.4]} 15. Nf4 {[%clk 0:02:38.4]} 15...
Bxa2 {[%clk 0:03:03.3]} 16. b3 {[%clk 0:02:39.7]} 16... Rab8 {[%clk 0:02:53.5]}
17. Kb2 {[%clk 0:02:36.1]} 17... Bxb3 {[%clk 0:02:48.7]} 18. Nxb3 {[%clk
0:02:36.5]} 18... Rxd1 {[%clk 0:02:49.8]} 19. Rxd1 {[%clk 0:02:35.7]} 19... c4
{[%clk 0:02:51.3]} 20. Rd7 {[%clk 0:02:27.8]} 20... Rxb3+ {[%clk 0:02:48.5]} 21.
Kc2 {[%clk 0:02:27.5]} 21... Rxc3+ {[%clk 0:02:49.7]} 22. Kd2 {[%clk 0:02:28.4]}
22... Ra3 {[%clk 0:02:49.2]} 23. Rc7 {[%clk 0:02:14.6]} 23... Ra2+ {[%clk
0:02:49.8]} 24. Ke1 {[%clk 0:02:14.4]} 24... Ra1+ {[%clk 0:02:37.7]} 25. Ke2
{[%clk 0:02:12.9]} 25... Ra2+ {[%clk 0:02:39.1]} 26. Ke1 {[%clk 0:02:13.5]}
26... Ra6 {[%clk 0:02:39]} 27. Ne2 {[%clk 0:02:10.2]} 27... c3 {[%clk
0:02:39.2]} 28. Nd4 {[%clk 0:02:01]} 28... Bxd4 {[%clk 0:02:36.8]} 29. exd4
{[%clk 0:02:02.4]} 29... Ra1+ {[%clk 0:02:38.3]} 30. Ke2 {[%clk 0:02:01.4]}
30... c2 {[%clk 0:02:40.2]} 31. Rc8+ {[%clk 0:01:57.5]} 31... Kg7 {[%clk
0:02:40.6]} 32. Rxc6 {[%clk 0:01:57.8]} 32... c1=Q {[%clk 0:02:41.2]} 33. d5
{[%clk 0:01:57]} 33... Qd1+ {[%clk 0:02:37.8]} 34. Ke3 {[%clk 0:01:57.5]} 34...
Ra3+ {[%clk 0:02:38.7]} 35. Kf4 {[%clk 0:01:56.6]} 35... Qd4+ {[%clk 0:02:36.4]}
36. Kg5 {[%clk 0:01:55]} 36... Qg4# {[%clk 0:02:37.4]} 0-1

[Event "*** Qualifier 4: Titled Tuesday 3|2 Blitz"]
[Site "Chess.com"]
[Date "2017.04.25"]
[Round "8"]
[White "silverback96"]
[Black "poummba"]
[Result "1-0"]
[WhiteElo "2078"]
[BlackElo "2347"]
[TimeControl "180+2"]
[EndTime "14:41:50 PDT"]
[Termination "silverback96 won by resignation"]

1. Nf3 {[%clk 0:03:02]} 1... g6 {[%clk 0:03:00.2]} 2. g3 {[%clk 0:03:02.8]} 2...
Bg7 {[%clk 0:03:02.1]} 3. Bg2 {[%clk 0:03:04.6]} 3... d6 {[%clk 0:03:03.5]} 4.
O-O {[%clk 0:03:06.5]} 4... Nf6 {[%clk 0:03:04.6]} 5. c4 {[%clk 0:03:07.7]} 5...
e5 {[%clk 0:03:04.7]} 6. Nc3 {[%clk 0:03:08.9]} 6... O-O {[%clk 0:03:05.5]} 7.
d4 {[%clk 0:03:10.5]} 7... Nc6 {[%clk 0:03:06.1]} 8. dxe5 {[%clk 0:03:09.6]}
8... dxe5 {[%clk 0:03:07.2]} 9. Bg5 {[%clk 0:03:11.5]} 9... Be6 {[%clk
0:03:04.1]} 10. Nd2 {[%clk 0:03:12.4]} 10... h6 {[%clk 0:03:02.6]} 11. Bxf6
{[%clk 0:03:13.4]} 11... Bxf6 {[%clk 0:03:04.1]} 12. Nde4 {[%clk 0:03:15]} 12...
Bg7 {[%clk 0:03:04.5]} 13. Qxd8 {[%clk 0:03:03]} 13... Raxd8 {[%clk 0:03:03.6]}
14. Nc5 {[%clk 0:03:02.6]} 14... Bc8 {[%clk 0:03:02.6]} 15. Nd5 {[%clk
0:03:00.6]} 15... Nd4 {[%clk 0:03:02]} 16. e3 {[%clk 0:02:51]} 16... Ne6 {[%clk
0:02:45.4]} 17. Ne7+ {[%clk 0:02:43]} 17... Kh7 {[%clk 0:02:46.1]} 18. Nxb7
{[%clk 0:02:33.5]} 18... Bxb7 {[%clk 0:02:46.8]} 19. Bxb7 {[%clk 0:02:35.4]}
19... Rb8 {[%clk 0:02:47.1]} 20. Bd5 {[%clk 0:02:35.1]} 20... Rxb2 {[%clk
0:02:47.2]} 21. Nc6 {[%clk 0:02:32.7]} 21... a6 {[%clk 0:02:31.5]} 22. Rab1
{[%clk 0:02:29.7]} 22... Rxa2 {[%clk 0:02:29.9]} 23. Rb7 {[%clk 0:02:30.1]}
23... Re8 {[%clk 0:01:58.9]} 24. Bxe6 {[%clk 0:02:25.7]} 24... Rxe6 {[%clk
0:02:00]} 25. Rxc7 {[%clk 0:02:27.1]} 25... Rc2 {[%clk 0:01:53.9]} 26. Nd8
{[%clk 0:02:27.1]} 26... Rf6 {[%clk 0:01:54.5]} 27. Nxf7 {[%clk 0:02:25.6]}
27... e4 {[%clk 0:01:50.7]} 28. c5 {[%clk 0:02:20.2]} 28... a5 {[%clk
0:01:45.8]} 29. Nd6 {[%clk 0:02:12.2]} 29... Re6 {[%clk 0:01:43.7]} 30. Rb1
{[%clk 0:02:03.9]} 30... Rxc5 {[%clk 0:01:08.7]} 31. Rxc5 {[%clk 0:01:58.1]}
31... Rxd6 {[%clk 0:01:09.8]} 32. Rb7 {[%clk 0:01:58.7]} 1-0

[Event "*** Qualifier 4: Titled Tuesday 3|2 Blitz"]
[Site "Chess.com"]
[Date "2017.04.25"]
[Round "8"]
[White "GGuseinov"]
[Black "feigelag"]
[Result "1-0"]
[WhiteElo "2738"]
[BlackElo "2337"]
[TimeControl "180+2"]
[EndTime "14:42:26 PDT"]
[Termination "GGuseinov won by resignation"]

1. e4 {[%clk 0:03:02]} 1... e5 {[%clk 0:02:54.1]} 2. Nf3 {[%clk 0:03:03]} 2...
Nc6 {[%clk 0:02:54.5]} 3. Bb5 {[%clk 0:03:03.7]} 3... a6 {[%clk 0:02:56]} 4.
Bxc6 {[%clk 0:03:04.6]} 4... dxc6 {[%clk 0:02:57.9]} 5. O-O {[%clk 0:03:05.5]}
5... Bg4 {[%clk 0:02:57]} 6. h3 {[%clk 0:03:05.9]} 6... Bh5 {[%clk 0:02:53.6]}
7. g4 {[%clk 0:03:02.9]} 7... Bg6 {[%clk 0:02:43.8]} 8. Nxe5 {[%clk 0:03:02.7]}
8... Qh4 {[%clk 0:02:43.2]} 9. Qf3 {[%clk 0:02:56.5]} 9... f6 {[%clk 0:02:43.3]}
10. Nxg6 {[%clk 0:02:54.9]} 10... hxg6 {[%clk 0:02:45.2]} 11. Kg2 {[%clk
0:02:54.6]} 11... Bd6 {[%clk 0:02:41.9]} 12. d4 {[%clk 0:02:41.9]} 12... g5
{[%clk 0:02:38.9]} 13. e5 {[%clk 0:02:29]} 13... Be7 {[%clk 0:02:35]} 14. Nc3
{[%clk 0:02:21.7]} 14... O-O-O {[%clk 0:02:32.7]} 15. Be3 {[%clk 0:02:22.8]}
15... Qh7 {[%clk 0:02:27.3]} 16. Rad1 {[%clk 0:02:18.9]} 16... Qxc2 {[%clk
0:02:24]} 17. d5 {[%clk 0:02:11.2]} 17... Qxb2 {[%clk 0:02:11.7]} 18. dxc6
{[%clk 0:02:01.7]} 18... Nh6 {[%clk 0:01:50.7]} 19. Nd5 {[%clk 0:01:56]} 19...
Qxe5 {[%clk 0:01:40.2]} 20. cxb7+ {[%clk 0:01:51.1]} 20... Kb8 {[%clk 0:01:39]}
21. Rfe1 {[%clk 0:01:41.5]} 21... c5 {[%clk 0:00:33.4]} 22. Bf4 {[%clk
0:01:32.5]} 22... gxf4 {[%clk 0:00:25.3]} 23. Rxe5 {[%clk 0:01:33.3]} 23... fxe5
{[%clk 0:00:26.5]} 24. Qe2 {[%clk 0:01:34.6]} 1-0